[Event "*** Titled Tuesday Blitz"]
[Site "Chess.com"]
[Date "2019.07.02"]
[Round "5"]
[White "EndgameGrinder"]
[Black "VeraNebolsina"]
[Result "0-1"]
[WhiteElo "2572"]
[BlackElo "2376"]
[TimeControl "180+2"]
[EndTime "14:07:53 PDT"]
[Termination "VeraNebolsina won by resignation"]

1. e4 {[%clk 0:03:01.9]} 1... g6 {[%clk 0:02:58.1]} 2. d4 {[%clk 0:03:02.1]}
2... Bg7 {[%clk 0:02:58.3]} 3. Nc3 {[%clk 0:03:03.8]} 3... d6 {[%clk 0:02:58.1]}
4. f4 {[%clk 0:03:04.2]} 4... Nf6 {[%clk 0:02:56.9]} 5. Nf3 {[%clk 0:03:04.7]}
5... c5 {[%clk 0:02:57.2]} 6. Bb5+ {[%clk 0:03:03.6]} 6... Bd7 {[%clk
0:02:58.1]} 7. e5 {[%clk 0:03:01]} 7... Ng4 {[%clk 0:02:57.3]} 8. e6 {[%clk
0:02:57.4]} 8... fxe6 {[%clk 0:02:56.9]} 9. Ng5 {[%clk 0:02:57.2]} 9... Bxb5
{[%clk 0:01:58.5]} 10. Nxe6 {[%clk 0:02:57.1]} 10... Bxd4 {[%clk 0:01:58.4]} 11.
Nxb5 {[%clk 0:02:41.6]} 11... Qa5+ {[%clk 0:01:52.4]} 12. c3 {[%clk 0:02:42]}
12... Bf2+ {[%clk 0:01:51.6]} 13. Kd2 {[%clk 0:02:40.8]} 13... Na6 {[%clk
0:01:19.4]} 14. Nxd6+ {[%clk 0:02:26]} 14... exd6 {[%clk 0:01:16.6]} 15. Qxg4
{[%clk 0:02:27.9]} 15... c4 {[%clk 0:00:57.1]} 16. Qe2 {[%clk 0:02:17.6]} 16...
Kd7 {[%clk 0:00:50.7]} 17. Ng5 {[%clk 0:01:55.4]} 17... Qd5+ {[%clk 0:00:37.1]}
18. Kc2 {[%clk 0:01:49.6]} 18... Bb6 {[%clk 0:00:36.1]} 19. Qg4+ {[%clk
0:01:39.6]} 19... Kc6 {[%clk 0:00:30.7]} 20. Rd1 {[%clk 0:01:32.7]} 20... Qf5+
{[%clk 0:00:31.7]} 21. Qxf5 {[%clk 0:01:32.6]} 21... gxf5 {[%clk 0:00:33.6]} 22.
b3 {[%clk 0:00:53.8]} 22... Rhe8 {[%clk 0:00:30.5]} 23. Ba3 {[%clk 0:00:44.4]}
23... Re2+ {[%clk 0:00:31]} 24. Rd2 {[%clk 0:00:45.9]} 24... Rae8 {[%clk
0:00:31.6]} 25. Rd1 {[%clk 0:00:43.3]} 25... Nc7 {[%clk 0:00:24.1]} 26. Bxd6
{[%clk 0:00:36.9]} 26... Nd5 {[%clk 0:00:24.2]} 27. Be5 {[%clk 0:00:32.9]} 27...
Ne3+ {[%clk 0:00:24.3]} 28. Kb1 {[%clk 0:00:33.8]} 28... Nxd1 {[%clk 0:00:21.6]}
29. Rxe2 {[%clk 0:00:34.8]} 29... Nxc3+ {[%clk 0:00:22.7]} 30. Bxc3 {[%clk
0:00:36]} 30... Rxe2 {[%clk 0:00:23.7]} 31. g3 {[%clk 0:00:30.3]} 31... cxb3
{[%clk 0:00:21.3]} 32. axb3 {[%clk 0:00:32.2]} 32... Rxh2 {[%clk 0:00:22.5]} 33.
Nf3 {[%clk 0:00:31.3]} 33... Rg2 {[%clk 0:00:21.7]} 34. Nh4 {[%clk 0:00:31.8]}
34... Rxg3 {[%clk 0:00:22.2]} 35. Kc2 {[%clk 0:00:31.4]} 35... Rh3 {[%clk
0:00:21.2]} 36. Nxf5 {[%clk 0:00:32.2]} 36... Bc7 {[%clk 0:00:20.6]} 37. Nd4+
{[%clk 0:00:30.5]} 37... Kd7 {[%clk 0:00:21.5]} 38. Ne2 {[%clk 0:00:30.6]} 38...
Rh2 {[%clk 0:00:21.9]} 39. Kd3 {[%clk 0:00:31.5]} 39... h5 {[%clk 0:00:23]} 40.
Ke3 {[%clk 0:00:29.2]} 40... h4 {[%clk 0:00:23.7]} 41. Be1 {[%clk 0:00:26.6]}
41... h3 {[%clk 0:00:23.1]} 42. Bg3 {[%clk 0:00:27.6]} 42... Rg2 {[%clk
0:00:23.4]} 43. Kf3 {[%clk 0:00:27.8]} 43... Bb6 {[%clk 0:00:21.6]} 44. f5
{[%clk 0:00:25.4]} 44... Ke7 {[%clk 0:00:21.7]} 45. Nf4 {[%clk 0:00:26.5]} 45...
Rxg3+ {[%clk 0:00:21.4]} 46. Kxg3 {[%clk 0:00:27]} 46... Bc7 {[%clk 0:00:23]}
47. Kxh3 {[%clk 0:00:26.1]} 47... Bxf4 {[%clk 0:00:23.9]} 48. Kg4 {[%clk
0:00:28]} 48... Be5 {[%clk 0:00:24.9]} 49. Kf3 {[%clk 0:00:29.9]} 49... Kf6
{[%clk 0:00:25.8]} 50. Ke4 {[%clk 0:00:31.8]} 50... b6 {[%clk 0:00:26.8]} 51. b4
{[%clk 0:00:32.2]} 51... a6 {[%clk 0:00:27.6]} 52. Kd5 {[%clk 0:00:32.2]} 52...
Kxf5 {[%clk 0:00:27.5]} 53. Kc6 {[%clk 0:00:33.9]} 0-1

[Event "*** Titled Tuesday Blitz"]
[Site "Chess.com"]
[Date "2019.07.02"]
[Round "5"]
[White "Philosopherrr"]
[Black "tigra"]
[Result "0-1"]
[WhiteElo "2518"]
[BlackElo "2769"]
[TimeControl "180+2"]
[EndTime "14:07:55 PDT"]
[Termination "tigra won by resignation"]

1. e4 {[%clk 0:03:01.9]} 1... c5 {[%clk 0:03:00.2]} 2. Nf3 {[%clk 0:03:02.5]}
2... e6 {[%clk 0:02:59.5]} 3. Nc3 {[%clk 0:03:01.9]} 3... a6 {[%clk 0:02:56.5]}
4. d4 {[%clk 0:03:00.6]} 4... cxd4 {[%clk 0:02:57.4]} 5. Nxd4 {[%clk 0:03:02.5]}
5... Qc7 {[%clk 0:02:56.5]} 6. g3 {[%clk 0:03:03.6]} 6... Nf6 {[%clk 0:02:55]}
7. Bg2 {[%clk 0:03:04.7]} 7... b5 {[%clk 0:02:47.1]} 8. O-O {[%clk 0:02:56]}
8... Bb7 {[%clk 0:02:46.5]} 9. Re1 {[%clk 0:02:45.5]} 9... d6 {[%clk 0:02:36.8]}
10. Nd5 {[%clk 0:02:31.3]} 10... exd5 {[%clk 0:02:35.7]} 11. exd5+ {[%clk
0:02:32.6]} 11... Kd8 {[%clk 0:02:36.2]} 12. c4 {[%clk 0:02:24.9]} 12... bxc4
{[%clk 0:02:29]} 13. Qa4 {[%clk 0:02:18.6]} 13... Nbd7 {[%clk 0:02:27.4]} 14.
Bd2 {[%clk 0:02:15.7]} 14... Nb6 {[%clk 0:02:19.3]} 15. Qa3 {[%clk 0:02:03.2]}
15... Bxd5 {[%clk 0:02:18.2]} 16. Bh3 {[%clk 0:01:52.9]} 16... Rb8 {[%clk
0:01:45.4]} 17. Ba5 {[%clk 0:01:50.4]} 17... Ba8 {[%clk 0:01:41.6]} 18. Rad1
{[%clk 0:01:10.2]} 18... h5 {[%clk 0:01:21.9]} 19. Qe3 {[%clk 0:00:55.3]} 19...
Qb7 {[%clk 0:01:10.5]} 20. f3 {[%clk 0:00:46.4]} 20... Qc7 {[%clk 0:00:53.9]}
21. b3 {[%clk 0:00:37.9]} 21... Bd5 {[%clk 0:00:53.1]} 22. bxc4 {[%clk
0:00:35.2]} 22... Qxc4 {[%clk 0:00:49.2]} 23. Rc1 {[%clk 0:00:23.1]} 23... Kc7
{[%clk 0:00:25.4]} 24. Rxc4+ {[%clk 0:00:21.2]} 24... Bxc4 {[%clk 0:00:27.3]}
25. Qc3 {[%clk 0:00:20.3]} 25... d5 {[%clk 0:00:28.1]} 26. Nb3 {[%clk
0:00:18.2]} 26... Kb7 {[%clk 0:00:26.7]} 27. Qd4 {[%clk 0:00:17.1]} 27... Na4
{[%clk 0:00:27.4]} 28. Bg2 {[%clk 0:00:14.2]} 28... Bxb3 {[%clk 0:00:27.2]} 29.
Qd3 {[%clk 0:00:05.8]} 29... Bc4 {[%clk 0:00:27.4]} 30. Rb1+ {[%clk 0:00:07.3]}
30... Ka8 {[%clk 0:00:25.5]} 31. Rxb8+ {[%clk 0:00:08.3]} 31... Kxb8 {[%clk
0:00:27.4]} 32. Qc2 {[%clk 0:00:09.5]} 32... Bc5+ {[%clk 0:00:26.4]} 33. Kh1
{[%clk 0:00:10.8]} 33... Bb5 {[%clk 0:00:27.1]} 34. Bd2 {[%clk 0:00:09.9]} 34...
Re8 {[%clk 0:00:26.3]} 35. Bf4+ {[%clk 0:00:10.8]} 35... Kb7 {[%clk 0:00:26.8]}
36. h4 {[%clk 0:00:12.2]} 36... Re1+ {[%clk 0:00:25.8]} 37. Kh2 {[%clk
0:00:13.6]} 37... Bg1+ {[%clk 0:00:26.8]} 38. Kh3 {[%clk 0:00:14.6]} 38... Bd7+
{[%clk 0:00:27.2]} 39. g4 {[%clk 0:00:16.1]} 39... hxg4+ {[%clk 0:00:28.5]} 40.
fxg4 {[%clk 0:00:15.9]} 40... Bxg4+ {[%clk 0:00:29.3]} 41. Kg3 {[%clk
0:00:17.4]} 41... Nc5 {[%clk 0:00:21.5]} 42. Qb2+ {[%clk 0:00:13]} 42... Kc6
{[%clk 0:00:22.2]} 43. Qb8 {[%clk 0:00:13.6]} 43... Bd7 {[%clk 0:00:18.4]} 44.
Qd6+ {[%clk 0:00:11.9]} 44... Kb5 {[%clk 0:00:18.5]} 45. a4+ {[%clk 0:00:13.5]}
45... Kc4 {[%clk 0:00:17.5]} 46. Bf3 {[%clk 0:00:11.8]} 46... Nfe4+ {[%clk
0:00:18]} 0-1

[Event "*** Titled Tuesday Blitz"]
[Site "Chess.com"]
[Date "2019.07.02"]
[Round "5"]
[White "Semen_Khanin"]
[Black "FrenchMonster2002"]
[Result "1-0"]
[WhiteElo "2706"]
[BlackElo "2445"]
[TimeControl "180+2"]
[EndTime "14:07:58 PDT"]
[Termination "Semen_Khanin won by resignation"]

1. e4 {[%clk 0:03:01.9]} 1... c5 {[%clk 0:03:01.2]} 2. Ne2 {[%clk 0:03:01.7]}
2... Nc6 {[%clk 0:03:02.4]} 3. Nbc3 {[%clk 0:03:02.5]} 3... g6 {[%clk 0:03:03]}
4. d4 {[%clk 0:03:01.4]} 4... cxd4 {[%clk 0:03:04.9]} 5. Nxd4 {[%clk 0:03:03]}
5... Bg7 {[%clk 0:03:06.7]} 6. Be3 {[%clk 0:03:04.7]} 6... Nf6 {[%clk
0:03:07.5]} 7. Bc4 {[%clk 0:03:03.8]} 7... d6 {[%clk 0:03:06.8]} 8. f3 {[%clk
0:03:01.9]} 8... O-O {[%clk 0:03:06.3]} 9. Qd2 {[%clk 0:03:02.7]} 9... Bd7
{[%clk 0:03:05.1]} 10. O-O-O {[%clk 0:03:01.8]} 10... Nxd4 {[%clk 0:03:06.3]}
11. Bxd4 {[%clk 0:03:02.4]} 11... b5 {[%clk 0:03:06.5]} 12. Bxb5 {[%clk
0:02:47.9]} 12... Bxb5 {[%clk 0:02:53.1]} 13. Nxb5 {[%clk 0:02:48.7]} 13... a6
{[%clk 0:02:31.3]} 14. Nc3 {[%clk 0:02:49.3]} 14... Rb8 {[%clk 0:02:24.7]} 15.
Kb1 {[%clk 0:02:50.3]} 15... Qd7 {[%clk 0:02:13.1]} 16. g4 {[%clk 0:02:49.8]}
16... Rfc8 {[%clk 0:02:12.2]} 17. h4 {[%clk 0:02:49]} 17... h5 {[%clk
0:02:09.2]} 18. g5 {[%clk 0:02:49.3]} 18... Ne8 {[%clk 0:02:10.6]} 19. f4 {[%clk
0:02:48.4]} 19... Nc7 {[%clk 0:01:42.4]} 20. f5 {[%clk 0:02:46.4]} 20... Nb5
{[%clk 0:01:33.7]} 21. Bxg7 {[%clk 0:02:43.5]} 21... Kxg7 {[%clk 0:01:26.2]} 22.
Nxb5 {[%clk 0:02:44.2]} 22... Qxb5 {[%clk 0:01:26.5]} 23. b3 {[%clk 0:02:43.2]}
23... a5 {[%clk 0:01:15.7]} 24. f6+ {[%clk 0:02:41.8]} 24... exf6 {[%clk
0:01:14.9]} 25. gxf6+ {[%clk 0:02:43.1]} 25... Kxf6 {[%clk 0:01:13.3]} 26. Qxd6+
{[%clk 0:02:30]} 26... Kg7 {[%clk 0:01:12.8]} 27. Rhf1 {[%clk 0:02:31.7]} 27...
Rb6 {[%clk 0:00:48.8]} 28. Qd4+ {[%clk 0:02:28.8]} 28... Kg8 {[%clk 0:00:47.8]}
29. Qd7 {[%clk 0:02:26.2]} 29... Qxd7 {[%clk 0:00:29.5]} 30. Rxd7 {[%clk
0:02:26.8]} 30... Rf8 {[%clk 0:00:31.4]} 31. c4 {[%clk 0:02:27.5]} 31... Re6
{[%clk 0:00:32.3]} 32. Rf4 {[%clk 0:02:27.6]} 32... Rfe8 {[%clk 0:00:31.3]} 33.
Rfxf7 {[%clk 0:02:25.5]} 33... Rxe4 {[%clk 0:00:32.7]} 34. Rg7+ {[%clk
0:02:26.8]} 34... Kh8 {[%clk 0:00:33.4]} 35. Rh7+ {[%clk 0:02:15.7]} 35... Kg8
{[%clk 0:00:34.6]} 36. Rdg7+ {[%clk 0:02:16.7]} 36... Kf8 {[%clk 0:00:36.1]} 37.
Rxg6 {[%clk 0:02:17.9]} 37... Rxh4 {[%clk 0:00:32]} 38. Rh8+ {[%clk 0:02:17.1]}
38... Kf7 {[%clk 0:00:32.9]} 39. Rxe8 {[%clk 0:02:16.5]} 39... Kxg6 {[%clk
0:00:31.4]} 40. c5 {[%clk 0:02:17.6]} 40... Rh1+ {[%clk 0:00:17.3]} 41. Kb2
{[%clk 0:02:18.4]} 41... Rh2+ {[%clk 0:00:14.9]} 42. Kc3 {[%clk 0:02:19.6]}
42... Kf7 {[%clk 0:00:09.5]} 43. Rh8 {[%clk 0:02:19]} 43... Ke6 {[%clk
0:00:07.4]} 44. Kc4 {[%clk 0:01:57.6]} 44... h4 {[%clk 0:00:05.2]} 45. c6 {[%clk
0:01:57.3]} 45... Kd6 {[%clk 0:00:05.4]} 46. Kb5 {[%clk 0:01:58.4]} 46... Rxa2
{[%clk 0:00:05.7]} 47. Rxh4 {[%clk 0:01:54]} 47... Rb2 {[%clk 0:00:03.4]} 48.
Rh3 {[%clk 0:01:37.1]} 48... a4 {[%clk 0:00:04.6]} 49. Rd3+ {[%clk 0:01:35.1]}
49... Kc7 {[%clk 0:00:03.3]} 50. Rd7+ {[%clk 0:01:36.1]} 50... Kc8 {[%clk
0:00:03.8]} 51. Kxa4 {[%clk 0:01:38]} 51... Ra2+ {[%clk 0:00:03.5]} 52. Kb5
{[%clk 0:01:39.4]} 52... Rb2 {[%clk 0:00:04]} 53. b4 {[%clk 0:01:40.8]} 53...
Rc2 {[%clk 0:00:05.2]} 54. Kb6 {[%clk 0:01:41.4]} 54... Rb2 {[%clk 0:00:05.8]}
55. b5 {[%clk 0:01:42.8]} 55... Ra2 {[%clk 0:00:06.3]} 56. Rh7 {[%clk
0:01:42.1]} 56... Kd8 {[%clk 0:00:05.2]} 57. c7+ {[%clk 0:01:40.8]} 57... Kc8
{[%clk 0:00:05.5]} 58. Rh8+ {[%clk 0:01:42]} 58... Kd7 {[%clk 0:00:07.4]} 59.
c8=Q+ {[%clk 0:01:42.9]} 59... Kd6 {[%clk 0:00:09.3]} 60. Qc5+ {[%clk
0:01:42.3]} 60... Kd7 {[%clk 0:00:10.4]} 61. Rh7+ {[%clk 0:01:42.2]} 1-0

[Event "*** Titled Tuesday Blitz"]
[Site "Chess.com"]
[Date "2019.07.02"]
[Round "5"]
[White "Bagirova"]
[Black "Jospem"]
[Result "0-1"]
[WhiteElo "1911"]
[BlackElo "2859"]
[TimeControl "180+2"]
[EndTime "14:07:59 PDT"]
[Termination "Jospem won by resignation"]

1. e4 {[%clk 0:02:59.7]} 1... c5 {[%clk 0:02:59.8]} 2. Nf3 {[%clk 0:02:59.6]}
2... d6 {[%clk 0:03:01.2]} 3. d4 {[%clk 0:03:00.4]} 3... cxd4 {[%clk 0:03:03.1]}
4. Nxd4 {[%clk 0:03:01.4]} 4... Nf6 {[%clk 0:03:04.7]} 5. Nc3 {[%clk 0:03:02.2]}
5... a6 {[%clk 0:03:06.3]} 6. a4 {[%clk 0:03:03.5]} 6... e6 {[%clk 0:03:07.3]}
7. Be2 {[%clk 0:03:04]} 7... b6 {[%clk 0:03:08.6]} 8. O-O {[%clk 0:03:04.7]}
8... Bb7 {[%clk 0:03:09.5]} 9. f3 {[%clk 0:03:06.1]} 9... Be7 {[%clk 0:03:10.7]}
10. Be3 {[%clk 0:03:07.3]} 10... O-O {[%clk 0:03:12.2]} 11. Bd3 {[%clk
0:03:01.2]} 11... Nbd7 {[%clk 0:03:12.8]} 12. Qe2 {[%clk 0:03:00.1]} 12... Qc7
{[%clk 0:03:11.7]} 13. Qf2 {[%clk 0:03:00.5]} 13... Rac8 {[%clk 0:03:08.2]} 14.
g4 {[%clk 0:02:49.2]} 14... Ne5 {[%clk 0:02:59.4]} 15. g5 {[%clk 0:02:47.4]}
15... Nfd7 {[%clk 0:02:51.9]} 16. h4 {[%clk 0:02:42.2]} 16... Qb8 {[%clk
0:02:38.8]} 17. h5 {[%clk 0:02:33.7]} 17... Rfe8 {[%clk 0:02:31.3]} 18. Be2
{[%clk 0:02:17]} 18... d5 {[%clk 0:02:24.7]} 19. f4 {[%clk 0:02:15.1]} 19... Nc4
{[%clk 0:02:25.9]} 20. Bxc4 {[%clk 0:02:12.9]} 20... Rxc4 {[%clk 0:02:27.8]} 21.
e5 {[%clk 0:01:49.5]} 21... Nf8 {[%clk 0:02:23.9]} 22. Nce2 {[%clk 0:01:42.5]}
22... Bc8 {[%clk 0:02:16.7]} 23. c3 {[%clk 0:01:43]} 23... Rc7 {[%clk
0:02:18.2]} 24. f5 {[%clk 0:01:40.1]} 24... exf5 {[%clk 0:02:17.9]} 25. Nxf5
{[%clk 0:01:40]} 25... Bxf5 {[%clk 0:02:19.2]} 26. Qxf5 {[%clk 0:01:38.9]} 26...
Bc5 {[%clk 0:02:20.7]} 27. Nd4 {[%clk 0:01:31]} 27... Rce7 {[%clk 0:02:21.5]}
28. Bf4 {[%clk 0:01:23.8]} 28... Ne6 {[%clk 0:02:22.6]} 29. Be3 {[%clk
0:01:06.3]} 29... Qc8 {[%clk 0:02:22.3]} 30. g6 {[%clk 0:00:58.8]} 30... fxg6
{[%clk 0:02:19.1]} 31. hxg6 {[%clk 0:00:54.8]} 31... hxg6 {[%clk 0:02:20.1]} 32.
Qxg6 {[%clk 0:00:54.4]} 32... Nf8 {[%clk 0:02:20.4]} 33. Qg3 {[%clk 0:00:32.3]}
33... Rxe5 {[%clk 0:02:16.1]} 34. Bf4 {[%clk 0:00:26.5]} 34... Re4 {[%clk
0:02:03.3]} 35. Rae1 {[%clk 0:00:20.8]} 35... Rxe1 {[%clk 0:01:55.1]} 36. Rxe1
{[%clk 0:00:22]} 36... Rxe1+ {[%clk 0:01:55.7]} 37. Qxe1 {[%clk 0:00:23.4]}
37... Qg4+ {[%clk 0:01:56.9]} 38. Qg3 {[%clk 0:00:24.7]} 38... Qxg3+ {[%clk
0:01:57.9]} 39. Bxg3 {[%clk 0:00:25.1]} 39... Ne6 {[%clk 0:01:59.6]} 40. Be5
{[%clk 0:00:24.2]} 40... b5 {[%clk 0:01:58.8]} 41. axb5 {[%clk 0:00:24.2]} 41...
axb5 {[%clk 0:02:00.7]} 42. Kg2 {[%clk 0:00:24.7]} 42... Bxd4 {[%clk 0:02:02.3]}
43. cxd4 {[%clk 0:00:24.4]} 43... Kf7 {[%clk 0:02:04.2]} 44. Kf3 {[%clk
0:00:25.3]} 44... g6 {[%clk 0:02:05.7]} 45. Kg4 {[%clk 0:00:26]} 45... Ke8
{[%clk 0:02:07]} 46. Bf6 {[%clk 0:00:24.4]} 46... Kd7 {[%clk 0:02:08.1]} 47. Be5
{[%clk 0:00:25.5]} 47... Ke7 {[%clk 0:02:09.2]} 48. Kf3 {[%clk 0:00:26.2]} 48...
Nd8 {[%clk 0:02:09.7]} 49. Kg4 {[%clk 0:00:26.6]} 49... Ke6 {[%clk 0:02:10.5]}
50. Bc7 {[%clk 0:00:25.7]} 50... Nc6 {[%clk 0:02:11.2]} 51. Bb6 {[%clk
0:00:27.1]} 51... Nb4 {[%clk 0:02:11.3]} 52. Kg5 {[%clk 0:00:26.3]} 52... Nd3
{[%clk 0:02:12.4]} 53. b3 {[%clk 0:00:26]} 53... Nc1 {[%clk 0:02:13.1]} 54. b4
{[%clk 0:00:22.4]} 54... Nd3 {[%clk 0:02:14.3]} 55. Ba5 {[%clk 0:00:22.2]} 55...
Kf7 {[%clk 0:02:14.4]} 56. Kg4 {[%clk 0:00:22.7]} 56... Ne1 {[%clk 0:02:04.1]}
57. Kf4 {[%clk 0:00:21.6]} 57... Kf6 {[%clk 0:02:02.7]} 58. Bd8+ {[%clk
0:00:19.1]} 58... Ke6 {[%clk 0:02:03.8]} 59. Ba5 {[%clk 0:00:20.3]} 59... Nc2
{[%clk 0:02:04.5]} 60. Kg5 {[%clk 0:00:17.8]} 60... Nxd4 {[%clk 0:02:05.6]} 61.
Kxg6 {[%clk 0:00:18.2]} 61... Nf3 {[%clk 0:02:06.5]} 62. Kh5 {[%clk 0:00:17.5]}
62... Kf5 {[%clk 0:02:07.7]} 63. Kh6 {[%clk 0:00:16.9]} 63... d4 {[%clk
0:02:09.6]} 64. Bb6 {[%clk 0:00:16.4]} 64... d3 {[%clk 0:02:11.5]} 65. Be3
{[%clk 0:00:17.8]} 65... d2 {[%clk 0:02:13.4]} 66. Bxd2 {[%clk 0:00:18.2]} 66...
Nxd2 {[%clk 0:02:15.3]} 67. Kg7 {[%clk 0:00:19.3]} 67... Ke4 {[%clk 0:02:17.2]}
68. Kf7 {[%clk 0:00:20.4]} 68... Kd4 {[%clk 0:02:19.1]} 69. Ke6 {[%clk
0:00:21.6]} 69... Kc4 {[%clk 0:02:21]} 70. Kd6 {[%clk 0:00:22.9]} 70... Kxb4
{[%clk 0:02:22.9]} 71. Kd5 {[%clk 0:00:24.3]} 71... Kc3 {[%clk 0:02:23.7]} 0-1

[Event "*** Titled Tuesday Blitz"]
[Site "Chess.com"]
[Date "2019.07.02"]
[Round "5"]
[White "LaughingTiger"]
[Black "deBaller"]
[Result "1-0"]
[WhiteElo "2316"]
[BlackElo "2363"]
[TimeControl "180+2"]
[EndTime "14:07:59 PDT"]
[Termination "LaughingTiger won by resignation"]

1. e4 {[%clk 0:03:01.9]} 1... e6 {[%clk 0:03:00.3]} 2. d4 {[%clk 0:03:02.5]}
2... d5 {[%clk 0:03:00.6]} 3. Nc3 {[%clk 0:03:04.2]} 3... Nf6 {[%clk 0:03:00.7]}
4. e5 {[%clk 0:03:02.1]} 4... Nfd7 {[%clk 0:03:01.5]} 5. Nce2 {[%clk 0:03:03.7]}
5... c5 {[%clk 0:03:03]} 6. c3 {[%clk 0:03:05]} 6... Nc6 {[%clk 0:03:04]} 7. f4
{[%clk 0:03:01]} 7... Qa5 {[%clk 0:02:43.8]} 8. Nf3 {[%clk 0:02:59]} 8... f6
{[%clk 0:02:41.9]} 9. Be3 {[%clk 0:02:47.3]} 9... cxd4 {[%clk 0:02:39.6]} 10.
Nexd4 {[%clk 0:02:44.1]} 10... fxe5 {[%clk 0:02:36.3]} 11. Nxc6 {[%clk
0:02:16.3]} 11... bxc6 {[%clk 0:02:34.7]} 12. Nxe5 {[%clk 0:02:06.6]} 12... Nxe5
{[%clk 0:02:34.1]} 13. fxe5 {[%clk 0:02:08.5]} 13... Bc5 {[%clk 0:02:28]} 14. b4
{[%clk 0:02:02.5]} 14... Bxb4 {[%clk 0:02:27.7]} 15. cxb4 {[%clk 0:02:04.4]}
15... Qxb4+ {[%clk 0:02:29.5]} 16. Qd2 {[%clk 0:02:04.5]} 16... Qh4+ {[%clk
0:02:18]} 17. g3 {[%clk 0:02:03.3]} 17... Qe4 {[%clk 0:02:18.8]} 18. Bg2 {[%clk
0:02:04.4]} 18... Qxe5 {[%clk 0:02:19.7]} 19. O-O {[%clk 0:02:06]} 19... Ba6
{[%clk 0:02:19.2]} 20. Rf4 {[%clk 0:01:57.4]} 20... Qxa1+ {[%clk 0:02:19.3]} 21.
Bf1 {[%clk 0:01:52.4]} 21... Bxf1 {[%clk 0:02:14.6]} 22. Rxf1 {[%clk 0:01:54.3]}
22... Qe5 {[%clk 0:02:11.9]} 23. Bd4 {[%clk 0:01:50.4]} 23... Qe4 {[%clk
0:02:03.6]} 24. Qc3 {[%clk 0:01:48.7]} 24... Rc8 {[%clk 0:01:55.4]} 25. Bc5
{[%clk 0:01:40.3]} 25... Qg6 {[%clk 0:01:45.7]} 26. Qe5 {[%clk 0:01:37.3]} 26...
Rd8 {[%clk 0:01:05.1]} 27. Qc7 {[%clk 0:01:31.1]} 27... Rd7 {[%clk 0:01:02.9]}
28. Qc8+ {[%clk 0:01:28.6]} 28... Rd8 {[%clk 0:01:04.1]} 29. Qxc6+ {[%clk
0:01:29.5]} 29... Rd7 {[%clk 0:01:05.3]} 30. Qc8+ {[%clk 0:01:04.2]} 30... Rd8
{[%clk 0:01:05.6]} 31. Qc7 {[%clk 0:01:04.2]} 31... Rd7 {[%clk 0:01:03.8]} 32.
Qb8+ {[%clk 0:01:04.3]} 32... Rd8 {[%clk 0:01:04.2]} 33. Qxa7 {[%clk 0:01:04.4]}
33... Rd7 {[%clk 0:01:03.5]} 34. Qb8+ {[%clk 0:00:57.2]} 34... Rd8 {[%clk
0:01:04.4]} 35. Qb5+ {[%clk 0:00:58]} 35... Rd7 {[%clk 0:01:04.5]} 36. a4 {[%clk
0:00:50.2]} 36... e5 {[%clk 0:00:55.5]} 37. Qb8+ {[%clk 0:00:45]} 37... Rd8
{[%clk 0:00:56.3]} 38. Qxe5+ {[%clk 0:00:46.1]} 38... Kd7 {[%clk 0:00:56.3]} 39.
Qxd5+ {[%clk 0:00:43.6]} 39... Kc7 {[%clk 0:00:55.5]} 40. Rf7+ {[%clk
0:00:43.5]} 40... Qxf7 {[%clk 0:00:48.9]} 41. Qxf7+ {[%clk 0:00:45.4]} 41... Rd7
{[%clk 0:00:50.2]} 42. Qf4+ {[%clk 0:00:44.1]} 42... Kc6 {[%clk 0:00:50.2]} 43.
Qc4 {[%clk 0:00:42.8]} 43... Re8 {[%clk 0:00:28.3]} 44. Qb5+ {[%clk 0:00:41.1]}
44... Kc7 {[%clk 0:00:29.2]} 45. Bb6+ {[%clk 0:00:40.4]} 45... Kd6 {[%clk
0:00:29.9]} 46. Qc5+ {[%clk 0:00:36.7]} 46... Ke6 {[%clk 0:00:30.2]} 47. Qc6+
{[%clk 0:00:37.6]} 47... Ke7 {[%clk 0:00:29.2]} 48. Bc5+ {[%clk 0:00:38.6]}
48... Kd8 {[%clk 0:00:29.9]} 49. Qb6+ {[%clk 0:00:39.7]} 49... Kc8 {[%clk
0:00:30.6]} 50. Bd6 {[%clk 0:00:40.8]} 50... Re1+ {[%clk 0:00:20.6]} 51. Kf2
{[%clk 0:00:36.5]} 51... Rb7 {[%clk 0:00:19.1]} 52. Qc6+ {[%clk 0:00:36.2]}
52... Kd8 {[%clk 0:00:20.4]} 53. Qxb7 {[%clk 0:00:35.6]} 1-0

[Event "*** Titled Tuesday Blitz"]
[Site "Chess.com"]
[Date "2019.07.02"]
[Round "5"]
[White "NemtsevIgor"]
[Black "imdarealist"]
[Result "1-0"]
[WhiteElo "2296"]
[BlackElo "2054"]
[TimeControl "180+2"]
[EndTime "14:08:01 PDT"]
[Termination "NemtsevIgor won by checkmate"]

1. d4 {[%clk 0:03:01.9]} 1... Nf6 {[%clk 0:02:59.6]} 2. Bf4 {[%clk 0:03:01.6]}
2... b6 {[%clk 0:02:58.1]} 3. e3 {[%clk 0:03:01.6]} 3... Bb7 {[%clk 0:02:58.9]}
4. Nd2 {[%clk 0:03:02.9]} 4... d6 {[%clk 0:02:53.4]} 5. Ngf3 {[%clk 0:03:02.5]}
5... Nbd7 {[%clk 0:02:54.3]} 6. h3 {[%clk 0:03:02.3]} 6... g6 {[%clk 0:02:47.9]}
7. Bc4 {[%clk 0:02:58.7]} 7... Bg7 {[%clk 0:02:48.7]} 8. O-O {[%clk 0:02:59.2]}
8... O-O {[%clk 0:02:49.6]} 9. Bh2 {[%clk 0:03:00.4]} 9... a6 {[%clk 0:02:48.7]}
10. a4 {[%clk 0:03:01.3]} 10... c5 {[%clk 0:02:45.5]} 11. c3 {[%clk 0:03:01.2]}
11... Rc8 {[%clk 0:02:44]} 12. Be2 {[%clk 0:02:56.3]} 12... h6 {[%clk
0:02:41.6]} 13. Re1 {[%clk 0:02:56.7]} 13... Ne4 {[%clk 0:02:31.2]} 14. Nxe4
{[%clk 0:02:55.6]} 14... Bxe4 {[%clk 0:02:33.1]} 15. Bxa6 {[%clk 0:02:56.2]}
15... Rc7 {[%clk 0:02:29.1]} 16. Bd3 {[%clk 0:02:52.6]} 16... Ba8 {[%clk
0:02:26.8]} 17. e4 {[%clk 0:02:49.5]} 17... Nf6 {[%clk 0:02:18.9]} 18. e5 {[%clk
0:02:48.2]} 18... Nd5 {[%clk 0:02:14.9]} 19. e6 {[%clk 0:02:45.5]} 19... f5
{[%clk 0:02:10.5]} 20. Nh4 {[%clk 0:02:20.3]} 20... Kh7 {[%clk 0:02:06.7]} 21.
g4 {[%clk 0:02:19.5]} 21... Bf6 {[%clk 0:01:53.9]} 22. Ng2 {[%clk 0:02:03.1]}
22... fxg4 {[%clk 0:01:45.6]} 23. Qxg4 {[%clk 0:02:03.2]} 23... Bg5 {[%clk
0:01:40.2]} 24. f4 {[%clk 0:01:59.7]} 24... Nf6 {[%clk 0:01:31.3]} 25. Qg3
{[%clk 0:01:49.6]} 25... Nh5 {[%clk 0:01:28.6]} 26. Qg4 {[%clk 0:01:44.9]} 26...
Nf6 {[%clk 0:01:07.7]} 27. Qe2 {[%clk 0:01:45.4]} 27... Bxg2 {[%clk 0:01:03.8]}
28. fxg5 {[%clk 0:01:37.9]} 28... Bxh3 {[%clk 0:00:45.4]} 29. gxf6 {[%clk
0:01:37.2]} 29... Rxf6 {[%clk 0:00:45.7]} 30. d5 {[%clk 0:01:26.8]} 30... Qf8
{[%clk 0:00:35]} 31. Be4 {[%clk 0:01:18.6]} 31... Rc8 {[%clk 0:00:24.8]} 32. Bg2
{[%clk 0:01:18.9]} 32... Bf5 {[%clk 0:00:25]} 33. Rf1 {[%clk 0:01:18]} 33... h5
{[%clk 0:00:25.4]} 34. a5 {[%clk 0:01:08.4]} 34... bxa5 {[%clk 0:00:25.2]} 35.
Rxa5 {[%clk 0:01:08.5]} 35... Qd8 {[%clk 0:00:25.5]} 36. Ra7 {[%clk 0:01:06.8]}
36... c4 {[%clk 0:00:25.3]} 37. Qe3 {[%clk 0:01:02.1]} 37... Qf8 {[%clk
0:00:14.9]} 38. Bxd6 {[%clk 0:00:56.4]} 38... Bd3 {[%clk 0:00:12.5]} 39. Rxe7+
{[%clk 0:00:52.2]} 39... Kg8 {[%clk 0:00:13.9]} 40. Rxf6 {[%clk 0:00:38.5]}
40... Qxf6 {[%clk 0:00:15.1]} 41. Rf7 {[%clk 0:00:39.5]} 41... Qh4 {[%clk
0:00:06.5]} 42. Bg3 {[%clk 0:00:38.5]} 42... Qg4 {[%clk 0:00:07]} 43. Qh6 {[%clk
0:00:30.8]} 43... Qd1+ {[%clk 0:00:05]} 44. Kh2 {[%clk 0:00:31.5]} 44... Qg1+
{[%clk 0:00:02.7]} 45. Kxg1 {[%clk 0:00:30.9]} 45... g5 {[%clk 0:00:04.6]} 46.
Qg7# {[%clk 0:00:31.1]} 1-0